Workbook

Sheet Einleitung
C1: Version 3.2 - 11.11.2020
B3: Energieverbrauch-Erfassungs-Tool - V3
B4: Schrittweise Erfassung Ihrer Energieverbräuche und Ist-Analyse der Verbraucher
B6: Dieses Berechnungswerkzeug unterstützt Sie bei der Erfassung eingesetzter Energieträger und deren Nutzung durch verschiedene Energieverbraucher. Dieses Tool ist kostenlos und soll Sie und Ihr Unternehmen bei der Erfassung und Bewertung der energetischen Situation unterstützen. Es kann Ihnen beim Aufbau eines Energiemanagementsystems nach ISO 50001 helfen und beliebig erweitert werden. Zusätzlich kann es zur Nachweisführung im Rahmen der Spitzenausgleich-Effizienzsystemverordnung (SpaEfV) verwendet werden. Die Tabellen sind ebenfalls für die DIN EN 16247/ ISO 50002 eine Hilfestellung. Weiterführende Informationen erhalten Sie im GUTcert "Leitfaden zum effizienten Energiemanagement nach ISO 50001".
B7: Ihre Ansprechpartnerin Energiemanagement: Lisa Ziersch Telefon: +49 30 2332021-18 eMail: lisa.ziersch@gut-cert.de
B9: Disclaimer
B10: Dieses Tool wurde mit äußerster Sorgfalt erstellt und getestet. Die Copyrights liegen ausschließlich bei der GUTcert GmbH - sind jedoch zur kostenlosen Nutzung und individuellen Anpassung freigegeben. Für Aktualität, Vollständigkeit, Korrektheit oder Qualität wird jedoch keine Gewähr übernommen. Haftungsansprüche für Schäden materieller oder immaterieller Art, die durch die Nutzung oder Nichtnutzung des Programms verursacht werden, sind grundsätzlich ausgeschlossen. Die Emissionsfaktoren entsprechen dem aktuellen Stand der Wissenschaft (05 2011). Für die Korrektheit der Emissionsfaktoren sind die jeweiligen Herausgeber verantwortlich.
B12: www.gut-cert.de
B13: GUT Certifizierungsgesellschaft für Managementsysteme mbH Umweltgutachter Eichenstraße 3b D - 12435 Berlin
B14: Geschäftsführer: Prof. Dr.-Ing. Jan Uwe Lieback, Berlin, Amtsgericht Charlottenburg, HRB 64544, USt-ID-Nr. DE 190888348

Sheet Anleitung
C1: =Einleitung!$C$1 -> Version 3.2 - 11.11.2020
B3: Anleitung und Beschreibung des Tools
B5: A: Allgemeines
B7: 1. Office | C7: Das Tool erfordert Office 2010 oder höher.
B9: 2. Makros | C9: Das Tool enthält sogenannte Makros, die von der GUTcert signiert wurden. Das bedeutet, dass die Makros nur funktionieren, wenn Sie sich ein Zertifikat von der Gutcert Webseite heruntergeladen und auf Ihrem Computer installiert haben. Dies erfordert nur wenige Maus-Klicks. Ein Zertifikat ist eine kleine Datei, die sicherstellen soll, dass nur unveränderte GUTcert Makros gestartet werden. Dies erhöht Ihre und unsere Sicherheit. Das Zertifikat und weitere Informationen finden Sie hier:
C10: https://www.gut-cert.de/service/office-makro-zertifikat-installieren
B12: 3. Blattschutz | C12: Alle Arbeitsblätter sind gesperrt, damit Sie nur Eintragungen in den für die Benutzung benötigten Felder machen können und eine unabsichtliche Veränderung aller anderen Zellen ausgeschlossen ist. Ebenfalls gesperrt ist in der Regel das Hinzufügen oder Löschen von Spalten und Zeilen. Gibt es Spalten, die sie nicht benötigen, so können Sie diese gerne ausblenden.
C13: Möchten Sie einzelne Arbeitsblätter darüber hinaus anpassen, so lesen Sie bitte das Kapitel D: Modifikation.
B15: 4. Hilfe | C15: Mit der Seiten-HILFE (blaue HILFE-Buttons) erhalten Sie spezifische Hinweise zur Bedienung der jeweiligen Seite. Probieren Sie es einfach hier aus -->
B17: B: Übersicht
C19: Das Energieerfassungstool dient - der Erfassung aller Energieträger in Ihrem Betrieb, deren spezifische Kosten und Kohlendioxid-Emissionen - der Erfassung aller Verbraucher mit deren individuellem Verbrauch, Kosten und Kohlendioxid-Emissionen sowie eine ganze Reihe weitere Informationen zu den Verbrauchern wie Kapazität, Abwärme, etc. - sowie der Erfassung aller Messmittel, mit deren spezifischen Daten wie Kalibrierung, Eichung, Baujahr, etc. Darüber hinaus enthält das Energieerfassungstool auch einen Vorschlag für das Energieeinsparprogramm sowie Aktionspläne.
B21: C: Kurzanleitung
C23: Es gibt im Energieerfassungstool zwei Hauptseiten, in die Eintragungen vorzunehmen sind: 1. Eingangsbilanz (Erfassung aller Energieträger) 2. Verbrauchererfassung (Erfassung aller Verbraucher)
B25: 1. Eingangsbilanz | C25: Gehen Sie auf das Blatt Eingangsbilanz und fügen Sie alle von Ihren Unternehmen bezogenen Energieträger der Tabelle hinzu. Für jeden Energieträger wird dabei ein eigenes Tabellenblatt erzeugt. Tragen Sie anschließend die Bezugsmenge und die Kosten pro KWh für jeden Energieträger ein. Unterhalb der Haupttabelle befindet sich für jeden Energieträger eine monatliche Verbrauchstabelle. Hier können Sie die Verbräuche monatsweise eintragen, die dann in der Haupttabelle summiert werden. Sie können die Monatstabellen aber auch ignorieren und den Jahresverbrauch direkt in die obere Tabelle eintragen (siehe Bild). Um von einem Verbrauchswert (z.B. 100l Heizöl) die Kilowattstunden zu ermitteln, können Sie gerne unseren Rechner benutzen. Bevor Sie jedem Energieträger die entsprechenden Messmittel zuweisen können, müssen Sie diese vorher in der Messmittelliste erfasst haben.
B28: 2. Erfassung der Verbraucher | C28: Gehen Sie nun auf das Blatt Verbrauchererfassung und tragen Sie alle Verbraucher ein. Jedem Verbraucher können Sie nun die in der Eingangsbilanz erfassten Energieträger zuordnen, sowie den jeweiligen Verbrauch und das entsprechende Messmittel (soweit Sie dieses vorher in der Messmittelliste eingetragen haben). An dieser Stelle können auch alle weiteren Verbraucher-Informationen wie Kapazität, Abwärme, etc. eingetragen werden. An die Schaltfläche Verbraucher in Energieträger-Tabellen übertragen knüpft sich eine der Hauptfunktionen des Energieerfassungstools. Bei diesem Vorgang werden alle Verbraucher aus der Verbrauchererfassung in die jeweiligen Energieträgertabellen (orange) übertragen. Beispiel: Benötigt der Verbraucher: "Schmelzofen" sowohl Strom als auch Erdgas, so wird der selbe Verbraucher mit dem entsprechenden Gasverbrauch einmal in der Erdgas-Tabelle gelistet und mit dem entsprechenden Stromverbrauch noch einmal in der Strom-Tabelle. Hier lässt sich auch überprüfen, ob es Abweichungen gibt zwischen der Menge der bezogenen Energie eines Energieträgers und der Summe aller gemessenen Verbräuche.
B31: 3. Gesamtverbrauch | C31: Auf der Seite Gesamtverbrauch erhalten Sie noch einmal eine Übersicht über den Gesamtverbrauch aller ihrer Verbraucher (quer durch alle Energiearten). Hier können Sie noch einmal den Gesamtverbrauch mit den tatsächlich erfassten Messungen vergleichen, um einen Überblick zu erhalten, wie gut Sie in Sachen Verbraucher-Erfassung aufgestellt sind.
B33: 4. Messmittel | C33: Auf die Messmittelliste wird sowohl bei der Eingangsbilanz als auch bei der Verbrauchererfassung zugegriffen. Es bleibt Ihnen überlassen, ob Sie diese zuerst ausfüllen oder nach und nach, je nach Bedarf.
B35: 5. Emissions-faktoren | C35: Die CO2 Emissionen aller Energieträger werden mit Hilfe der Emissionstabelle errechnet. Hier sind bereits Standardwerte eingetragen, die sie auch ändern können. In diesem Reiter können Sie zusätzlich eigenen Energieträger durch Ergänzung in der Tabelle hinzufügen. Wichtig: Haben Sie eigene Energieträger eingetragen, die nicht in unserer Tabelle enthalten sind, so müssen sie für diese auch eigene Emissionsfaktoren eintragen, wenn Sie an einer Emissionsberechnung interessiert sind.
B37: D: Modifikation
C39: Alle Arbeitsblätter des Energieerfassungstool sind grundsätzlich geschützt (Blattschutz ist aktiviert). Welche Dinge auf einem Arbeitsblatt gesperrt sind, ist jedoch von Blatt zu Blatt unterschiedlich.
B41: Grundsätzlich erlaubt | C41: Grundsätzlich erlaubt auf allen Arbeitsblättern ist: - das Aus- und Einblenden von Zeilen und Spalten - das Ändern der Breite von Spalten und Zeilen - das Ändern der Zellformate (Zahlenformate, Textgröße, -farbe, -formatierung, Zellfarben, -rahmen, etc.) Erlaubt ist auch das Hinzufügen neuer Arbeitsblätter (z.B. für weitere Tabellen, Notizen, etc.).
B43: Grundsätzlich verboten | C43: Grundsätzlich Verboten ist das Löschen oder Umbenennen von Arbeitsblättern sowie das Ändern der Farbe der Reiter der Arbeitsblätter (grün und orange). Ebenfalls verboten auf (fast) allen Arbeitsblättern ist: - das Hinzufügen von Spalten und in den meisten Fällen auch das Hinzufügen von Zeilen - sowie natürlich das Beschreiben gesperrter Zellen (vor allem das Ändern von Tabellenüberschriften!).
B45: Ich möchte etwas verbotenes tun! | C45: Wenn Sie an unkritischen Stellen eine Seite verändern möchten, z.B. ein Kommentarfeld, eine Zeilen oder Spalten einfügen, dann können Sie das tun, nachdem der Blattschutz aufgehoben wurde. Voraussetzung ist dafür, daß Sie über gute Excel-Kenntnisse verfügen. Was eine unkritische Stelle ist, erfahren Sie in der Seiten-HILFE (blaue HILFE Buttons). Unter dem Reiter "Modifikationen" werden die Grenzen des Machbaren, die für jedes Blatt unterschiedlich sind, erläutert. Grundsätzlich vermeiden sollten Sie weiterhin: - das Ändern der Tabellenüberschriften (z.B.Spalte "Verbraucher" in "Geräte"). - das Umbenennen der Arbeitsblätter oder das Ändern der Reiterfarbe (Grün/orange) Im Einzelfall gilt natürlich immer "learning by doing". Was funktioniert, ist auch erlaubt. Mit den "Grenzen des Machbaren" sind hier alle Änderungen gemeint, die keine Änderung der Programmierung erfordern. VBA Entwicklern steht es natürlich frei, auch diese Grenzen zu überschreiten und das Tool nach Belieben abzuändern. Wichtig ist jedoch, daß die GUTcert als ursprünglicher Autor immer genannt wird.
B47: Blattschutz | C47: Über das Excel-Menü "Überprüfen/ Blattschutz aufheben" können Sie den Blattschutz für jedes Blatt einzeln aufheben. Was Sie jedoch nie machen sollten, ist: den Blattschutz wieder von Hand zu aktivieren! Das ist auch nicht nötig, denn: Der Blattschutz wird jedes Mal automatisch beim Öffnen der Excel-Datei durch ein Skript gesetzt! Sollten Sie doch einmal aus Versehen den Blattschutz manuell gesetzt haben, so hilft das einfache Schließen und erneute Öffnen der Datei. Möchten Sie den Blattschutz dauerhaft deaktivieren, so können Sie folgende Checkbox anklicken:
B48: Blattschutz aufgehoben! | C48: TRUE
B51: Worksheet | C51: Bedienung | D51: Modifikation
B52: Tab01_Intro | D52: Diese Tabelle kann ohne Einschränkungen verändert werden. ------------------------------------------------------------------------- Modifikationen erfordern die Aufhebung des Blattschutzes. Lesen Sie vorher immer in der "Anleitung" den Punkt "D: Modifikation".
B53: Tab02_Help | C53: Hier stehen Hinweise zur Bedienung der jeweiligen Seite. Klicken Sie auch oben auf den Reiter "Modifikation"! | D53: Hier stehen Hinweise dazu, wie Sie die Seite ( nach Aufheben des Blattschutzes) individuell anpassen können, ohne die Funktionalität zu beeinträchtigen. Tipp: Diese Hilfetexte können Sie auch verändern. Jede Veränderung eines Hilfe-Textes wird gespeichert. Zeilenumbruch erzeugen Sie mit mit Strg + Eingabe (Return) Die Texte für die Seiten-HILFE (also diese Texte) stehen auf diesem Blatt in ein paar ausgeblendeten Zeilen unterhalb der Anleitung. ------------------------------------------------------------------------- Modifikationen erfordern die Aufhebung des Blattschutzes. Lesen Sie vorher immer in der "Anleitung" den Punkt "D: Modifikation".
B54: Tab03_Balance | C54: 1. Hinzufügen eines Energieträgers Wählen Sie dazu einen Energieträger aus der Liste aus ODER schreiben Sie eine Bezeichnung Ihrer Wahl in das Feld (max 17 Buchstaben) und fügen ihn mit dem orangenen Button der Liste hinzu. Für den Fall, dass Sie einen Namen eingeben, der nicht in der Liste steht, so müssen Sie auch im Arbeitsblatt Emissionsfaktoren diesen Energieträger hinzufügen, wenn Sie an der Ermittlung der CO2-Werte interessiert sind. Fehlt ein entsprechender Wert so erscheint stattdessen ein "nv" (für "nicht vorhanden"). 2. Tragen Sie in die untere Tabelle die Bezugsmengen und die Kosten für jeden Energieträger ein. Scrollen Sie ganz nach unten, zu der Monatsübersicht, wenn Sie den Verbrauch monatsweise eintragen wollen! Sollten Ihre Verbrauchsdaten nicht in kWh, sondern in GJ, Nm³ oder Litern vorliegen, finden Sie unter "Rechner" eine Umrechnungshilfe. 3. Weisen Sie jedem Energieträger das entsprechende Messsystem zu (so vorhanden/ optional). Dies erfordert jedoch, daß Sie die entsprechenden Messsysteme zuerst im Arbeitsblatt "Messmittelliste" eingetragen haben. Wechseln Sie abschließend zur Seite "Verbrauchererfassung". | D54: Unproblematisch ist: - das Hinzufügen oder Löschen von Spalten rechts und links der Tabelle - das Hinzufügen oder Löschen von Zeilen ober- und unterhalb der Tabelle Natürlich steht es Ihnen frei, die Diagramme zu löschen, zu ändern oder eigene hinzuzufügen. Unterlassen sollten Sie: - das Hinzufügen von Spalten innerhalb der Tabelle - das Hinzufügen von Zeilen innerhalb der Tabelle (dafür gibt es den "Energieträger hinzufügen" Button) Achtung: Die letzte Zeile der Tabelle ist ausgeblendet und darf nicht gelöscht werden! ------------------------------------------------------------------------- Modifikationen erfordern die Aufhebung des Blattschutzes. Lesen Sie vorher immer in der "Anleitung" den Punkt "D: Modifikation".
B55: Tab04_Loads | C55: 1. Hinzufügen der Verbraucher (Spalte C-E) Tragen Sie bitte Ihre Verbraucher und/oder Unterverbraucher ein. Die 3-teilige Struktur (Verbraucher/Unterverbraucher/Kennung) ist nur ein Vorschlag. Es reicht, wenn (je Verbraucher/ je Zeile) in einer der Spalten etwas eingetragen wird. (Nicht benötigte Spalten können Sie auch mit den üblichen Excel-Mitteln ausblenden.) Die laufende Nummer (erste Spalte) wird automatisch erzeugt. 2. Hinzufügen der Verbraucherinformationen (Spalte F-J) Hier können Sie weitere Informationen zu Ihren Verbrauchern erfassen (optional). Diese Spalten können jederzeit mit Hilfe der entsprechenden Checkbox ausgeblendet werden. 3. Erfassung des Energieverbrauches Tragen Sie nun die Energieträger und den entsprechenden Verbrauch für jeden Verbraucher ein. Des weiteren können Sie für je Energieträger ein Messmittel (Messgerät) angeben, insofern Sie es vorher in der Messmittelliste erfaßt haben. 4. Verbraucher in Energieträgertabellen übertragen Für jeden Energieträger, den Sie in der Eingangsbilanz erfasst haben, wurde ein Arbeitsblatt erzeugt. Durch Klick auf den Button "Verbraucher in Energieträgertabellen übertragen" geschieht genaus das. Die ist ein Schritt, den Sie auch gerne mehrfach tun können. Sie müssen also nicht damit warten, bis die Liste der Energieträger vollständig ist. Die Verbraucherliste in den Energieträgertabellen, werden jedes Mal neu erzeugt. WICHTIG: Bei jeder Änderung (z.B. beim Verbrauch) müssen Sie die Verbraucher erneut in die Energieträger-Tabellen übertragen. Die Zahlen werden nicht automatisch angepaßt. Hinzufügen neuer Zeilen: Sie können den Button "Zeile hinzufügen" benutzen, um am Ende der Tabelle eine neue Leerzeile einzufügen. Sie können auch gerne "von Hand", d.h. mit den üblichen Excel-Mitteln an beliebiger Stelle INNERHALB der Tabelle Zeilen hinzufügen oder veschieben. Wichtig ist folgendes: Die laufende Nummer wird jedes Mal neu erzeugt und zählt immer von 1 abwärts. Verschieben Sie also den Verbraucher Nr 7 eine Zweile nach oben, so wird er zum Verbraucher Nr 6 ( es sei denn sie löschen die Formel in der ersten Spalte und Nummerieren von Hand). Verschiebt man Zellen (oder Zeilen) und ÜBERSCHREIBT den Zielbereich, so kann die Optik negativ beeinträchtigt werden, außerdem wird die Formel in Spalte 1 gelöscht. Deshalb wird davon abgeraten. | D55: Unproblematisch ist: - das Hinzufügen oder Löschen von Spalten rechts und links der Tabelle Außnahmsweise können Sie hier auch nach Bedarf INNERHALB der Tabelle Zeilen hinzufügen, löschen oder verschieben und zwar OHNE Aufhebung des Blattschutzes. Ausnahmsweise können Sie hier im Bereich der "Verbraucherinfos" (Spalte F-J) auch Spalten löschen oder neue einfügen. Alle anderen Bereiche sind tabu. Wenn Sie die automatische Nummerierung in der ersten Spalte stört, können Sie die Formeln auch gerne durch feste Zahlen ersetzen. Diese ist übrigends nicht gesperrt und kann auch ohne Aufhebung des Blattschutzes gelöscht oder verändert werden. Sortieren: Von einer Aktivierung der Sortierfunktion für diese Tabelle wird abgeraten (obwohl technisch möglich). Weil aber die Verbrauchernummer jedes Mal neu generiert wird, würde die ursprüngliche Reihenfolge bei Anwendung einer Sortierfunktion verloren gehen (es sei denn, Sie haben diese durch eine fixe Zahl ersetzt). ------------------------------------------------------------------------- Modifikationen erfordern die Aufhebung des Blattschutzes. Lesen Sie vorher immer in der "Anleitung" den Punkt "D: Modifikation".
B56: Tab05_Consumption | C56: In diesem Blatt sind keine Eintragungen vorzunehmen. Hier werden noch einmal alle Verbraucher mit ihrem jeweiligen Gesamtverbrauch (also quer durch alle Energieträger) gelistet. Durch den Vergleich des Gesamtverbrauchs aller Energieträger (Bezugsmenge) mit der Summe des gemessenen Verbrauchs der einzelnen Verbraucher, sieht man gut, wo es noch Lücken in der Verbrauchserfassung gibt. WICHTIG: Die Tabelle selbst ist NICHT schreibgeschützt, weil sonst das Sortieren nicht funktionieren würde. Daher bitte Vorsicht mit den Formeln und auch die Spaltenüberschriften dürfen nicht geändert werden. Die (pop up) Kommentare im Tabellenkopf erläutern die einzelnen Spalten. Sie können gerne die Sortier- und Filterfunktionen benutzen, um die Verbraucher in eine übersichtliche Darstellung zu bringen. Die Nummer in der ersten Tabellenspalte entspricht dabei der Nummer des Verbrauchers in der "Verbrauchererfassung". Die Tabelle wird jedes Mal automatisch aktualisiert, sobald sich die Anzahl der Zeilen in der "Verbrauchererfassung" geändert hat. | D56: Unproblematisch ist: - das Hinzufügen oder Löschen von Spalten rechts und links der Tabelle - das Hinzufügen oder Löschen von Zeilen ober- und unterhalb der Tabelle Unterlassen sollten Sie: - das Hinzufügen von Spalten innerhalb der Tabelle - das Hinzufügen von Zeilen innerhalb der Tabelle Die Zeilen dieser Tabelle werden jedes Mal automatisch angepaßt, sobald sich die Anzahl der Zeilen in der Tabelle "Verbrauchererfassung" geändert hat. Achtung: Zeile 10 ist ausgeblendet und wird für die Aktualisierung der Tabelle benötigt! ------------------------------------------------------------------------- Modifikationen erfordern die Aufhebung des Blattschutzes. Lesen Sie vorher immer in der "Anleitung" den Punkt "D: Modifikation".
B57: Tab06_Factors | C57: Die Berechnung der CO2 Emissionen erfolgt voreingestellt mit Literaturwerten. Sollten Ihnen spezifische Emissionsfaktoren vorliegen, und Sie möchten die Berechnung lieber mit diesen Werten durchführen, tragen Sie diese bitte in die entsprechenden GRÜNEN Zellen ein. Werden die spezifischen Faktoren wieder gelöscht, erfolgt die Berechnung wieder mit den Literaturwerten. Neue Energieträger, die noch nicht in der Liste enthalten sind, können Sie unten in die letzte Zeile eintragen zusammen mit den entsprechenden Emissionsfaktoren. Diese erscheinen dann ebenfalls im DropDown Menü (Energieträgerliste) auf der "Eingangsbilanz" Seite. | D57: Unproblematisch ist: - das generelle Hinzufügen oder Löschen von Zeilen (auch innerhalb der Tabelle) Spalten können VOR oder NACH der Tabelle NICHT jedoch INNERHALB der Tabelle hinzugefügt oder gelöscht werden. Zu Beachten ist jedoch, daß sich die Liste der Energieträger (DropDown Menü) in der "Eingangsbilanz" aus DIESER Tabelle speist. Durch das Löschen von Zeilen kann dadurch die Auswahl an Energieträgern verringert werden. Sie könnnen die Energieträger auch umbenennen, jedoch sollte kein Name länger als 17 Buchstaben sein. Natürlich können Sie auch die Literaturwerte ändern, wenn Sie möchten. Achtung: Die letzte Zeile der Tabelle ist ausgeblendet und darf nicht gelöscht werden! ------------------------------------------------------------------------- Modifikationen erfordern die Aufhebung des Blattschutzes. Lesen Sie vorher immer in der "Anleitung" den Punkt "D: Modifikation".
B58: Tab07_Means | C58: In diesem Tabellenblatt werden die Messmittel/ Messgeräte erfaßt. Auf diese Liste wird sowohl in der "Eingangsbilanz" (Messmittel je Energieträger), als auch bei der "Verbrauchererfassung" (Messmittel je Verbraucher und Energieträger) zugegriffen. [Energieträger]: Sie müssen kein Element der Liste auswählen, sondern können auch eigene Begriffe eintragen. [Messprinzip]: z.B. Tankpeilung, Durchflussmessung, etc. [geeicht/kalibriert]: Datum eintragen [Grad der Genauigkeit]: Das DropDown Menü speist sich aus den Werten im gelben Bereich speist. Diese sind nur Vorschläge und können nach Bedarf verändert/ergänzt werden. Tipp: Wenn Sie viele Messmittel haben, empfiehlt es sich die Liste zu sortieren (z.B. nach Energieträgern). Dadurch werden auch die DropDown Menüs in der "Eingangsbilanz" und bei der "Verbrauchererfassung" ebenfalls übersichtlicher. | D58: Unproblematisch ist: - das Hinzufügen oder Löschen von Spalten rechts und links der Tabelle Neue Spalten dürfen Sie nur HINTER der LETZTEN Spalte (Grad der Genauigkeit" tun. Neue Zeilen können nach Bedarf an beliebiger Stelle eingefügt werden. Spaltennamen dürfen NICHT geändert werden. ------------------------------------------------------------------------- Modifikationen erfordern die Aufhebung des Blattschutzes. Lesen Sie vorher immer in der "Anleitung" den Punkt "D: Modifikation".
B59: Tab08_Activities | C59: Das Energie-Einsparprogramm ist die Auflistung aller Aktionspläne. In diese Tabelle wird (ausser in der Spalte Priorität) nichts direkt eingetragen, denn fast alle Zellen enthalten Formeln! Die Daten werden vielmehr in die Aktionspläne eingetragen, die Sie mit dem Button "Neuer Aktionsplan" erzeugen können. | D59: Bei dieser Tabelle sollte möglichst gar nichts geändert werden! Und Vorsicht: Fast alle Zellen enthalten Formeln!
B60: Tab09_Calculator | C60: Mit Hilfe der Umrechnungstabelle können Sie Verbrauchswerte, die Ihnen als Volumen (Liter), Masse (Tonnen) oder Joule vorliegen, in Kilowattstunden umrechnen. Sie können sich dabei der Literaturwerte bedienen, die wir für Sie zusammengestellt haben. Einige der Berechnung erfordern weitere Angaben, z.B. zur Dichte der Stoffe. | D60: Diese Tabelle kann ohne Einschränkungen verändert werden. ------------------------------------------------------------------------- Modifikationen erfordern die Aufhebung des Blattschutzes. Lesen Sie vorher immer in der "Anleitung" den Punkt "D: Modifikation".
B61: TabZ_template | C61: In diesem Blatt sind keine Eintragungen vorzunehmen. Hier werden alle Verbraucher gelistet, die DIESEN Energieträger benötigen (wie in der "Verbrauchererfassung" angegeben). WICHTIG: Die Tabelle selbst ist nicht schreibgeschützt, weil sonst das Sortieren nicht funktionieren würde. Daher bitte Vorsicht mit den Formeln und auch die Spaltenüberschriften dürfen nicht geändert werden. Die (pop up) Kommentare im Tabellenkopf erläuteren die einzelnen Spalten. Anhand der Summe der "Anteile am Gesamtverbrauch" erkennen Sie, ob der gemessene Verbrauch dem Gesamtverbrauch (laut"Eingangsbilanz") DIESES Energieträgers entspricht, oder ob es in der Messung noch Lücken gibt. Liegt der Wert bei 100%, so haben Sie alle Verbraucher lückenlos erfasst. Mit Hilfe der Sortierfunktion können Sie die Liste nach Wunsch sortieren, z.B. nach Höhe des Verbrauchs etc. | D61: Die Energieträger-Tabellen sind Kopien des verstecken Arbeitsblattes "template". Hier Änderungen vorzunehmen ist (von Formatierungsänderungen o.ä. abgesehen) wenig sinnvoll. Auch kleinere Änderungen können schnell die Funktionsfähigkeit beeinträchtigen, deshalb ist davon abzuraten.

Sheet Eingangsbilanz
J1: =Einleitung!$C$1 -> Version 3.2 - 11.11.2020
B3: Erfassung der Eingangsenergien für das Jahr: | F3: 2018 | H3: Ihre Anmerkungen…
G6: 1
B8: eingesetzte Energie/ Energieträger | C8: Bezugsmenge [kWh/a] | D8: Kosten pro kWh [€/ kWh] | E8: Anteil am Gesamt-verbrauch | F8: Kosten [€] | G8: Kosten-anteil | H8: CO2 Emissionen [t] | I8: CO2-Anteil | J8: Messsystem oder alternative Art der Erfassung und Analyse | K8: Grad der Genauigkeit/ Kalibrierung
E9: =IF(C$11>0,C9/C$11,"") ->  | F9: =C9*D9 -> 0 | G9: =IF(F$11>0,F9/F$11,"") ->  | H9: =IFERROR(VLOOKUP(B9,EFaktoren,5,FALSE)*C9*0.001,"nv") -> nv | I9: =IF(AND(H$11>0, ISNUMBER(H9)),H9/H$11,"nv") -> nv | K9: =IFERROR(VLOOKUP(J9,Tab_Measurement[],6,FALSE),"") -> 
E10: =IF(C$11>0,C10/C$11,"") ->  | F10: =C10*D10 -> 0 | G10: =IF(F$11>0,F10/F$11,"") ->  | H10: =IFERROR(VLOOKUP(B10,EFaktoren,5,FALSE)*C10*0.001,"nv") -> nv | I10: =IF(AND(H$11>0, ISNUMBER(H10)),H10/H$11,"nv") -> nv | K10: =IFERROR(VLOOKUP(J10,Tab_Measurement[],6,FALSE),"") -> 
B11: Summe | C11: =SUM(C9:C10) -> 0 | E11: =SUM(E9:E10) -> 0 | F11: =SUM(F9:F10) -> 0 | G11: =SUM(G9:G10) -> 0 | H11: =SUM(H9:H10) -> 0 | I11: =SUM(I9:I10) -> 0
B18: Verbrauch nach Monat und Energieträger in kWh
B20: Monat | C20: energieträger
B21: Januar
B22: Februar
B23: März
B24: April
B25: Mai
B26: Juni
B27: Juli
B28: August
B29: September
B30: Oktober
B31: November
B32: Dezember
B33: Summe | C33: =SUM(C21:C32) -> 0
... 1 more rows

Sheet Verbrauchererfassung
K1: =Einleitung!$C$1 -> Version 3.2 - 11.11.2020
B3: Erfassung der Verbraucher
C6: FALSE | D6: FALSE | L6: 1. Energieträger | O6: 2. Energieträger | R6: 3. Energieträger | U6: 4. Energieträger | X6: 5. Energieträger | AA6: 6. Energieträger | AD6: 7. Energieträger | AG6: 8. Energieträger
B7: Nr | C7: Verbraucher | D7: Unterverbraucher | E7: Kennung | F7: SEU | G7: Betriebszeit pro Jahr [h] | H7: Leistungsaufnahme der Anlage [kW] (Kapazität) | I7: Abwärme [kWh] (Temperaturniveau) | J7: Baujahr | K7: Sonstiges (z.B. Wartung) | L7: Energieträger 1 | M7: Verbrauch 1 [kWh/a] | N7: Messmittel 1 | O7: Energieträger 2 | P7: Verbrauch 2 [kWh/a] | Q7: Messmittel 2 | R7: Energieträger 3 | S7: Verbrauch 3 [kWh/a] | T7: Messmittel 3 | U7: Energieträger 4 | V7: Verbrauch 4 [kWh/a] | W7: Messmittel 4 | X7: Energieträger 5 | Y7: Verbrauch 5 [kWh/a] | Z7: Messmittel 5 | AA7: Energieträger 6 | AB7: Verbrauch 6 [kWh/a] | AC7: Messmittel 6 | AD7: Energieträger 7 | AE7: Verbrauch 7 [kWh/a] | AF7: Messmittel 7 | AG7: Energieträger 8 | AH7: Verbrauch 8 [kWh/a] | AI7: Messmittel 8
B8: =ROW()-ROW(Tab_Loads[[#Headers],[Nr]]) -> 1
B9: =ROW()-ROW(Tab_Loads[[#Headers],[Nr]]) -> 2
B10: =ROW()-ROW(Tab_Loads[[#Headers],[Nr]]) -> 3
B11: =ROW()-ROW(Tab_Loads[[#Headers],[Nr]]) -> 4
B12: =ROW()-ROW(Tab_Loads[[#Headers],[Nr]]) -> 5
B13: =ROW()-ROW(Tab_Loads[[#Headers],[Nr]]) -> 6
B14: =ROW()-ROW(Tab_Loads[[#Headers],[Nr]]) -> 7
B15: =ROW()-ROW(Tab_Loads[[#Headers],[Nr]]) -> 8
B16: =ROW()-ROW(Tab_Loads[[#Headers],[Nr]]) -> 9
B17: =ROW()-ROW(Tab_Loads[[#Headers],[Nr]]) -> 10
B21: Zeilen können auch manuell (z.B. innerhalb der Tabelle) eingefügt werden (ganze Zeile auswählen und Strg "+" (Plus-Zeichen) drücken).
B22: Zeilen innerhalb der Tabelle können auch nach Belieben gelöscht oder verschoben (Strg + Umschalt) werden.
B23: Vom Verschieben mit ÜBERSCHREIBEN von Zellen wird abgeraten.

Sheet Gesamtverbrauch
K1: =Einleitung!$C$1 -> Version 3.2 - 11.11.2020
B3: Alle Verbraucher mit jeweiligem Gesamtverbrauch
F5: Verbrauch [kWh] | H5: Kosten [€] | J5: CO2 [t]
E6: Gesamtenergie laut Eingangsbilanz: | F6: =Eingangsbilanz!C11 -> 0 | H6: =Eingangsbilanz!F11 -> 0 | J6: =Eingangsbilanz!H11 -> 0
E7: Differenz zur Verbrauchermessung: | F7: =F6-F9 -> 0 | H7: =H6-H9 -> 0 | J7: =IF(ISNUMBER(J6),J6-J9,"nv") -> 0
E9: Summe der Verbrauchermessung: | F9: =SUM(Tab_LoadsOverallConsumption[Verbrauch '[kWh']]) -> 0 | G9: =SUM(Tab_LoadsOverallConsumption[Anteil am Gesamt-verbrauch]) -> 0 | H9: =SUM(Tab_LoadsOverallConsumption[Kosten '[€']]) -> 0 | I9: =SUM(Tab_LoadsOverallConsumption[Kostenanteil]) -> 0 | J9: =SUM(Tab_LoadsOverallConsumption[CO2 '[t']]) -> 0 | K9: =SUM(Tab_LoadsOverallConsumption[CO2 - Anteil]) -> 0
B10: =Verbrauchererfassung!B6 -> 0 | C10: =Verbrauchererfassung!C6 -> FALSE | D10: =Verbrauchererfassung!D6 -> FALSE | E10: =Verbrauchererfassung!E6 -> 0 | F10: =SUM(Verbrauchererfassung!L6:AH6) -> 0 | G10: =IF(ISERROR(Tab_LoadsOverallConsumption[[#This Row],[Verbrauch '[kWh']]]/F$6),0,Tab_LoadsOverallConsumption[[#This Row],[Verbrauch '[kWh']]]/F$6) -> 0 | H10: =SUM(Verbrauchererfassung!M6 * IFERROR(VLOOKUP(Verbrauchererfassung!L6,EB_EnergyTable,3,FALSE),0),IFERROR(Verbrauchererfassung!P6 * VLOOKUP(Verbrauchererfassung!O6,EB_EnergyTable,3,FALSE),0),Verbrauchererfassung!S6 * IFERROR(VLOOKUP(Verbrauchererfassung!R6,EB_EnergyTable,3,FALSE),0),Verbrauchererfassung!V6 * IFERROR(VLOOKUP(Verbrauchererfassung!U6,EB_EnergyTable,3,FALSE),0),Verbrauchererfassung!Y6 * IFERROR(VLOOKUP(Verbrauchererfassung!X6,EB_EnergyTable,3,FALSE),0),Verbrauchererfassung!AB6 * IFERROR(VLOOKUP(Verbrauchererfassung!AA6,EB_EnergyTable,3,FALSE),0),Verbrauchererfassung!AE6 * IFERROR(VLOOKUP(Verbrauchererfassung!AD6,EB_EnergyTable,3,FALSE),0),Verbrauchererfassung!AH6 * IFERROR(VLOOKUP(Verbrauchererfassung!AG6,EB_EnergyTable,3,FALSE),0)) -> 0 | I10: =IF(ISERROR(Tab_LoadsOverallConsumption[[#This Row],[Kosten '[€']]]/H$6),0,Tab_LoadsOverallConsumption[[#This Row],[Kosten '[€']]]/H$6) -> 0 | J10: =SUM(Verbrauchererfassung!M6*IFERROR(VLOOKUP(Verbrauchererfassung!L6,EFaktoren,5,FALSE),0),IFERROR(Verbrauchererfassung!P6*VLOOKUP(Verbrauchererfassung!O6,EFaktoren,5,FALSE),0),Verbrauchererfassung!S6*IFERROR(VLOOKUP(Verbrauchererfassung!R6,EFaktoren,5,FALSE),0),Verbrauchererfassung!V6*IFERROR(VLOOKUP(Verbrauchererfassung!U6,EFaktoren,5,FALSE),0),Verbrauchererfassung!Y6*IFERROR(VLOOKUP(Verbrauchererfassung!X6,EFaktoren,5,FALSE),0),Verbrauchererfassung!AB6*IFERROR(VLOOKUP(Verbrauchererfassung!AA6,EFaktoren,5,FALSE),0),Verbrauchererfassung!AE6*IFERROR(VLOOKUP(Verbrauchererfassung!AD6,EFaktoren,5,FALSE),0),Verbrauchererfassung!AH6*IFERROR(VLOOKUP(Verbrauchererfassung!AG6,EFaktoren,5,FALSE),0))*0.001 -> 0 | K10: =IF(ISERROR(Tab_LoadsOverallConsumption[[#This Row],[CO2 '[t']]]/J$6),"nv",Tab_LoadsOverallConsumption[[#This Row],[CO2 '[t']]]/J$6) -> nv
B11: Nr | C11: Verbraucher | D11: Unterverbraucher | E11: Kennung | F11: Verbrauch [kWh] | G11: Anteil am Gesamt-verbrauch | H11: Kosten [€] | I11: Kostenanteil | J11: CO2 [t] | K11: CO2 - Anteil
B12: =Verbrauchererfassung!B8 -> 1 | C12: =Verbrauchererfassung!C8 -> 0 | E12: =Verbrauchererfassung!D8 -> 0 | F12: =SUM(Verbrauchererfassung!L8:AH8) -> 0 | G12: =IF(ISERROR(Tab_LoadsOverallConsumption[[#This Row],[Verbrauch '[kWh']]]/F$6),0,Tab_LoadsOverallConsumption[[#This Row],[Verbrauch '[kWh']]]/F$6) -> 0 | H12: =SUM(Verbrauchererfassung!M8 * IFERROR(VLOOKUP(Verbrauchererfassung!L8,EB_EnergyTable,3,FALSE),0),IFERROR(Verbrauchererfassung!P8 * VLOOKUP(Verbrauchererfassung!O8,EB_EnergyTable,3,FALSE),0),Verbrauchererfassung!S8 * IFERROR(VLOOKUP(Verbrauchererfassung!R8,EB_EnergyTable,3,FALSE),0),Verbrauchererfassung!V8 * IFERROR(VLOOKUP(Verbrauchererfassung!U8,EB_EnergyTable,3,FALSE),0),Verbrauchererfassung!Y8 * IFERROR(VLOOKUP(Verbrauchererfassung!X8,EB_EnergyTable,3,FALSE),0),Verbrauchererfassung!AB8 * IFERROR(VLOOKUP(Verbrauchererfassung!AA8,EB_EnergyTable,3,FALSE),0),Verbrauchererfassung!AE8 * IFERROR(VLOOKUP(Verbrauchererfassung!AD8,EB_EnergyTable,3,FALSE),0),Verbrauchererfassung!AH8 * IFERROR(VLOOKUP(Verbrauchererfassung!AG8,EB_EnergyTable,3,FALSE),0)) -> 0 | I12: =IF(ISERROR(Tab_LoadsOverallConsumption[[#This Row],[Kosten '[€']]]/H$6),0,Tab_LoadsOverallConsumption[[#This Row],[Kosten '[€']]]/H$6) -> 0 | J12: =SUM(Verbrauchererfassung!M8*IFERROR(VLOOKUP(Verbrauchererfassung!L8,EFaktoren,5,FALSE),0),IFERROR(Verbrauchererfassung!P8*VLOOKUP(Verbrauchererfassung!O8,EFaktoren,5,FALSE),0),Verbrauchererfassung!S8*IFERROR(VLOOKUP(Verbrauchererfassung!R8,EFaktoren,5,FALSE),0),Verbrauchererfassung!V8*IFERROR(VLOOKUP(Verbrauchererfassung!U8,EFaktoren,5,FALSE),0),Verbrauchererfassung!Y8*IFERROR(VLOOKUP(Verbrauchererfassung!X8,EFaktoren,5,FALSE),0),Verbrauchererfassung!AB8*IFERROR(VLOOKUP(Verbrauchererfassung!AA8,EFaktoren,5,FALSE),0),Verbrauchererfassung!AE8*IFERROR(VLOOKUP(Verbrauchererfassung!AD8,EFaktoren,5,FALSE),0),Verbrauchererfassung!AH8*IFERROR(VLOOKUP(Verbrauchererfassung!AG8,EFaktoren,5,FALSE),0))*0.001 -> 0 | K12: =IF(ISERROR(Tab_LoadsOverallConsumption[[#This Row],[CO2 '[t']]]/J$6),"nv",Tab_LoadsOverallConsumption[[#This Row],[CO2 '[t']]]/J$6) -> nv
B13: =Verbrauchererfassung!B9 -> 2 | C13: =Verbrauchererfassung!C9 -> 0 | E13: =Verbrauchererfassung!D9 -> 0 | F13: =SUM(Verbrauchererfassung!L9:AH9) -> 0 | G13: =IF(ISERROR(Tab_LoadsOverallConsumption[[#This Row],[Verbrauch '[kWh']]]/F$6),0,Tab_LoadsOverallConsumption[[#This Row],[Verbrauch '[kWh']]]/F$6) -> 0 | H13: =SUM(Verbrauchererfassung!M9 * IFERROR(VLOOKUP(Verbrauchererfassung!L9,EB_EnergyTable,3,FALSE),0),IFERROR(Verbrauchererfassung!P9 * VLOOKUP(Verbrauchererfassung!O9,EB_EnergyTable,3,FALSE),0),Verbrauchererfassung!S9 * IFERROR(VLOOKUP(Verbrauchererfassung!R9,EB_EnergyTable,3,FALSE),0),Verbrauchererfassung!V9 * IFERROR(VLOOKUP(Verbrauchererfassung!U9,EB_EnergyTable,3,FALSE),0),Verbrauchererfassung!Y9 * IFERROR(VLOOKUP(Verbrauchererfassung!X9,EB_EnergyTable,3,FALSE),0),Verbrauchererfassung!AB9 * IFERROR(VLOOKUP(Verbrauchererfassung!AA9,EB_EnergyTable,3,FALSE),0),Verbrauchererfassung!AE9 * IFERROR(VLOOKUP(Verbrauchererfassung!AD9,EB_EnergyTable,3,FALSE),0),Verbrauchererfassung!AH9 * IFERROR(VLOOKUP(Verbrauchererfassung!AG9,EB_EnergyTable,3,FALSE),0)) -> 0 | I13: =IF(ISERROR(Tab_LoadsOverallConsumption[[#This Row],[Kosten '[€']]]/H$6),0,Tab_LoadsOverallConsumption[[#This Row],[Kosten '[€']]]/H$6) -> 0 | J13: =SUM(Verbrauchererfassung!M9*IFERROR(VLOOKUP(Verbrauchererfassung!L9,EFaktoren,5,FALSE),0),IFERROR(Verbrauchererfassung!P9*VLOOKUP(Verbrauchererfassung!O9,EFaktoren,5,FALSE),0),Verbrauchererfassung!S9*IFERROR(VLOOKUP(Verbrauchererfassung!R9,EFaktoren,5,FALSE),0),Verbrauchererfassung!V9*IFERROR(VLOOKUP(Verbrauchererfassung!U9,EFaktoren,5,FALSE),0),Verbrauchererfassung!Y9*IFERROR(VLOOKUP(Verbrauchererfassung!X9,EFaktoren,5,FALSE),0),Verbrauchererfassung!AB9*IFERROR(VLOOKUP(Verbrauchererfassung!AA9,EFaktoren,5,FALSE),0),Verbrauchererfassung!AE9*IFERROR(VLOOKUP(Verbrauchererfassung!AD9,EFaktoren,5,FALSE),0),Verbrauchererfassung!AH9*IFERROR(VLOOKUP(Verbrauchererfassung!AG9,EFaktoren,5,FALSE),0))*0.001 -> 0 | K13: =IF(ISERROR(Tab_LoadsOverallConsumption[[#This Row],[CO2 '[t']]]/J$6),"nv",Tab_LoadsOverallConsumption[[#This Row],[CO2 '[t']]]/J$6) -> nv
B14: =Verbrauchererfassung!B10 -> 3 | C14: =Verbrauchererfassung!C10 -> 0 | E14: =Verbrauchererfassung!D10 -> 0 | F14: =SUM(Verbrauchererfassung!L10:AH10) -> 0 | G14: =IF(ISERROR(Tab_LoadsOverallConsumption[[#This Row],[Verbrauch '[kWh']]]/F$6),0,Tab_LoadsOverallConsumption[[#This Row],[Verbrauch '[kWh']]]/F$6) -> 0 | H14: =SUM(Verbrauchererfassung!M10 * IFERROR(VLOOKUP(Verbrauchererfassung!L10,EB_EnergyTable,3,FALSE),0),IFERROR(Verbrauchererfassung!P10 * VLOOKUP(Verbrauchererfassung!O10,EB_EnergyTable,3,FALSE),0),Verbrauchererfassung!S10 * IFERROR(VLOOKUP(Verbrauchererfassung!R10,EB_EnergyTable,3,FALSE),0),Verbrauchererfassung!V10 * IFERROR(VLOOKUP(Verbrauchererfassung!U10,EB_EnergyTable,3,FALSE),0),Verbrauchererfassung!Y10 * IFERROR(VLOOKUP(Verbrauchererfassung!X10,EB_EnergyTable,3,FALSE),0),Verbrauchererfassung!AB10 * IFERROR(VLOOKUP(Verbrauchererfassung!AA10,EB_EnergyTable,3,FALSE),0),Verbrauchererfassung!AE10 * IFERROR(VLOOKUP(Verbrauchererfassung!AD10,EB_EnergyTable,3,FALSE),0),Verbrauchererfassung!AH10 * IFERROR(VLOOKUP(Verbrauchererfassung!AG10,EB_EnergyTable,3,FALSE),0)) -> 0 | I14: =IF(ISERROR(Tab_LoadsOverallConsumption[[#This Row],[Kosten '[€']]]/H$6),0,Tab_LoadsOverallConsumption[[#This Row],[Kosten '[€']]]/H$6) -> 0 | J14: =SUM(Verbrauchererfassung!M10*IFERROR(VLOOKUP(Verbrauchererfassung!L10,EFaktoren,5,FALSE),0),IFERROR(Verbrauchererfassung!P10*VLOOKUP(Verbrauchererfassung!O10,EFaktoren,5,FALSE),0),Verbrauchererfassung!S10*IFERROR(VLOOKUP(Verbrauchererfassung!R10,EFaktoren,5,FALSE),0),Verbrauchererfassung!V10*IFERROR(VLOOKUP(Verbrauchererfassung!U10,EFaktoren,5,FALSE),0),Verbrauchererfassung!Y10*IFERROR(VLOOKUP(Verbrauchererfassung!X10,EFaktoren,5,FALSE),0),Verbrauchererfassung!AB10*IFERROR(VLOOKUP(Verbrauchererfassung!AA10,EFaktoren,5,FALSE),0),Verbrauchererfassung!AE10*IFERROR(VLOOKUP(Verbrauchererfassung!AD10,EFaktoren,5,FALSE),0),Verbrauchererfassung!AH10*IFERROR(VLOOKUP(Verbrauchererfassung!AG10,EFaktoren,5,FALSE),0))*0.001 -> 0 | K14: =IF(ISERROR(Tab_LoadsOverallConsumption[[#This Row],[CO2 '[t']]]/J$6),"nv",Tab_LoadsOverallConsumption[[#This Row],[CO2 '[t']]]/J$6) -> nv
B15: =Verbrauchererfassung!B11 -> 4 | C15: =Verbrauchererfassung!C11 -> 0 | E15: =Verbrauchererfassung!D11 -> 0 | F15: =SUM(Verbrauchererfassung!L11:AH11) -> 0 | G15: =IF(ISERROR(Tab_LoadsOverallConsumption[[#This Row],[Verbrauch '[kWh']]]/F$6),0,Tab_LoadsOverallConsumption[[#This Row],[Verbrauch '[kWh']]]/F$6) -> 0 | H15: =SUM(Verbrauchererfassung!M11 * IFERROR(VLOOKUP(Verbrauchererfassung!L11,EB_EnergyTable,3,FALSE),0),IFERROR(Verbrauchererfassung!P11 * VLOOKUP(Verbrauchererfassung!O11,EB_EnergyTable,3,FALSE),0),Verbrauchererfassung!S11 * IFERROR(VLOOKUP(Verbrauchererfassung!R11,EB_EnergyTable,3,FALSE),0),Verbrauchererfassung!V11 * IFERROR(VLOOKUP(Verbrauchererfassung!U11,EB_EnergyTable,3,FALSE),0),Verbrauchererfassung!Y11 * IFERROR(VLOOKUP(Verbrauchererfassung!X11,EB_EnergyTable,3,FALSE),0),Verbrauchererfassung!AB11 * IFERROR(VLOOKUP(Verbrauchererfassung!AA11,EB_EnergyTable,3,FALSE),0),Verbrauchererfassung!AE11 * IFERROR(VLOOKUP(Verbrauchererfassung!AD11,EB_EnergyTable,3,FALSE),0),Verbrauchererfassung!AH11 * IFERROR(VLOOKUP(Verbrauchererfassung!AG11,EB_EnergyTable,3,FALSE),0)) -> 0 | I15: =IF(ISERROR(Tab_LoadsOverallConsumption[[#This Row],[Kosten '[€']]]/H$6),0,Tab_LoadsOverallConsumption[[#This Row],[Kosten '[€']]]/H$6) -> 0 | J15: =SUM(Verbrauchererfassung!M11*IFERROR(VLOOKUP(Verbrauchererfassung!L11,EFaktoren,5,FALSE),0),IFERROR(Verbrauchererfassung!P11*VLOOKUP(Verbrauchererfassung!O11,EFaktoren,5,FALSE),0),Verbrauchererfassung!S11*IFERROR(VLOOKUP(Verbrauchererfassung!R11,EFaktoren,5,FALSE),0),Verbrauchererfassung!V11*IFERROR(VLOOKUP(Verbrauchererfassung!U11,EFaktoren,5,FALSE),0),Verbrauchererfassung!Y11*IFERROR(VLOOKUP(Verbrauchererfassung!X11,EFaktoren,5,FALSE),0),Verbrauchererfassung!AB11*IFERROR(VLOOKUP(Verbrauchererfassung!AA11,EFaktoren,5,FALSE),0),Verbrauchererfassung!AE11*IFERROR(VLOOKUP(Verbrauchererfassung!AD11,EFaktoren,5,FALSE),0),Verbrauchererfassung!AH11*IFERROR(VLOOKUP(Verbrauchererfassung!AG11,EFaktoren,5,FALSE),0))*0.001 -> 0 | K15: =IF(ISERROR(Tab_LoadsOverallConsumption[[#This Row],[CO2 '[t']]]/J$6),"nv",Tab_LoadsOverallConsumption[[#This Row],[CO2 '[t']]]/J$6) -> nv
B16: =Verbrauchererfassung!B12 -> 5 | C16: =Verbrauchererfassung!C12 -> 0 | E16: =Verbrauchererfassung!D12 -> 0 | F16: =SUM(Verbrauchererfassung!L12:AH12) -> 0 | G16: =IF(ISERROR(Tab_LoadsOverallConsumption[[#This Row],[Verbrauch '[kWh']]]/F$6),0,Tab_LoadsOverallConsumption[[#This Row],[Verbrauch '[kWh']]]/F$6) -> 0 | H16: =SUM(Verbrauchererfassung!M12 * IFERROR(VLOOKUP(Verbrauchererfassung!L12,EB_EnergyTable,3,FALSE),0),IFERROR(Verbrauchererfassung!P12 * VLOOKUP(Verbrauchererfassung!O12,EB_EnergyTable,3,FALSE),0),Verbrauchererfassung!S12 * IFERROR(VLOOKUP(Verbrauchererfassung!R12,EB_EnergyTable,3,FALSE),0),Verbrauchererfassung!V12 * IFERROR(VLOOKUP(Verbrauchererfassung!U12,EB_EnergyTable,3,FALSE),0),Verbrauchererfassung!Y12 * IFERROR(VLOOKUP(Verbrauchererfassung!X12,EB_EnergyTable,3,FALSE),0),Verbrauchererfassung!AB12 * IFERROR(VLOOKUP(Verbrauchererfassung!AA12,EB_EnergyTable,3,FALSE),0),Verbrauchererfassung!AE12 * IFERROR(VLOOKUP(Verbrauchererfassung!AD12,EB_EnergyTable,3,FALSE),0),Verbrauchererfassung!AH12 * IFERROR(VLOOKUP(Verbrauchererfassung!AG12,EB_EnergyTable,3,FALSE),0)) -> 0 | I16: =IF(ISERROR(Tab_LoadsOverallConsumption[[#This Row],[Kosten '[€']]]/H$6),0,Tab_LoadsOverallConsumption[[#This Row],[Kosten '[€']]]/H$6) -> 0 | J16: =SUM(Verbrauchererfassung!M12*IFERROR(VLOOKUP(Verbrauchererfassung!L12,EFaktoren,5,FALSE),0),IFERROR(Verbrauchererfassung!P12*VLOOKUP(Verbrauchererfassung!O12,EFaktoren,5,FALSE),0),Verbrauchererfassung!S12*IFERROR(VLOOKUP(Verbrauchererfassung!R12,EFaktoren,5,FALSE),0),Verbrauchererfassung!V12*IFERROR(VLOOKUP(Verbrauchererfassung!U12,EFaktoren,5,FALSE),0),Verbrauchererfassung!Y12*IFERROR(VLOOKUP(Verbrauchererfassung!X12,EFaktoren,5,FALSE),0),Verbrauchererfassung!AB12*IFERROR(VLOOKUP(Verbrauchererfassung!AA12,EFaktoren,5,FALSE),0),Verbrauchererfassung!AE12*IFERROR(VLOOKUP(Verbrauchererfassung!AD12,EFaktoren,5,FALSE),0),Verbrauchererfassung!AH12*IFERROR(VLOOKUP(Verbrauchererfassung!AG12,EFaktoren,5,FALSE),0))*0.001 -> 0 | K16: =IF(ISERROR(Tab_LoadsOverallConsumption[[#This Row],[CO2 '[t']]]/J$6),"nv",Tab_LoadsOverallConsumption[[#This Row],[CO2 '[t']]]/J$6) -> nv
B17: =Verbrauchererfassung!B13 -> 6 | C17: =Verbrauchererfassung!C13 -> 0 | E17: =Verbrauchererfassung!D13 -> 0 | F17: =SUM(Verbrauchererfassung!L13:AH13) -> 0 | G17: =IF(ISERROR(Tab_LoadsOverallConsumption[[#This Row],[Verbrauch '[kWh']]]/F$6),0,Tab_LoadsOverallConsumption[[#This Row],[Verbrauch '[kWh']]]/F$6) -> 0 | H17: =SUM(Verbrauchererfassung!M13 * IFERROR(VLOOKUP(Verbrauchererfassung!L13,EB_EnergyTable,3,FALSE),0),IFERROR(Verbrauchererfassung!P13 * VLOOKUP(Verbrauchererfassung!O13,EB_EnergyTable,3,FALSE),0),Verbrauchererfassung!S13 * IFERROR(VLOOKUP(Verbrauchererfassung!R13,EB_EnergyTable,3,FALSE),0),Verbrauchererfassung!V13 * IFERROR(VLOOKUP(Verbrauchererfassung!U13,EB_EnergyTable,3,FALSE),0),Verbrauchererfassung!Y13 * IFERROR(VLOOKUP(Verbrauchererfassung!X13,EB_EnergyTable,3,FALSE),0),Verbrauchererfassung!AB13 * IFERROR(VLOOKUP(Verbrauchererfassung!AA13,EB_EnergyTable,3,FALSE),0),Verbrauchererfassung!AE13 * IFERROR(VLOOKUP(Verbrauchererfassung!AD13,EB_EnergyTable,3,FALSE),0),Verbrauchererfassung!AH13 * IFERROR(VLOOKUP(Verbrauchererfassung!AG13,EB_EnergyTable,3,FALSE),0)) -> 0 | I17: =IF(ISERROR(Tab_LoadsOverallConsumption[[#This Row],[Kosten '[€']]]/H$6),0,Tab_LoadsOverallConsumption[[#This Row],[Kosten '[€']]]/H$6) -> 0 | J17: =SUM(Verbrauchererfassung!M13*IFERROR(VLOOKUP(Verbrauchererfassung!L13,EFaktoren,5,FALSE),0),IFERROR(Verbrauchererfassung!P13*VLOOKUP(Verbrauchererfassung!O13,EFaktoren,5,FALSE),0),Verbrauchererfassung!S13*IFERROR(VLOOKUP(Verbrauchererfassung!R13,EFaktoren,5,FALSE),0),Verbrauchererfassung!V13*IFERROR(VLOOKUP(Verbrauchererfassung!U13,EFaktoren,5,FALSE),0),Verbrauchererfassung!Y13*IFERROR(VLOOKUP(Verbrauchererfassung!X13,EFaktoren,5,FALSE),0),Verbrauchererfassung!AB13*IFERROR(VLOOKUP(Verbrauchererfassung!AA13,EFaktoren,5,FALSE),0),Verbrauchererfassung!AE13*IFERROR(VLOOKUP(Verbrauchererfassung!AD13,EFaktoren,5,FALSE),0),Verbrauchererfassung!AH13*IFERROR(VLOOKUP(Verbrauchererfassung!AG13,EFaktoren,5,FALSE),0))*0.001 -> 0 | K17: =IF(ISERROR(Tab_LoadsOverallConsumption[[#This Row],[CO2 '[t']]]/J$6),"nv",Tab_LoadsOverallConsumption[[#This Row],[CO2 '[t']]]/J$6) -> nv
B18: =Verbrauchererfassung!B14 -> 7 | C18: =Verbrauchererfassung!C14 -> 0 | E18: =Verbrauchererfassung!D14 -> 0 | F18: =SUM(Verbrauchererfassung!L14:AH14) -> 0 | G18: =IF(ISERROR(Tab_LoadsOverallConsumption[[#This Row],[Verbrauch '[kWh']]]/F$6),0,Tab_LoadsOverallConsumption[[#This Row],[Verbrauch '[kWh']]]/F$6) -> 0 | H18: =SUM(Verbrauchererfassung!M14 * IFERROR(VLOOKUP(Verbrauchererfassung!L14,EB_EnergyTable,3,FALSE),0),IFERROR(Verbrauchererfassung!P14 * VLOOKUP(Verbrauchererfassung!O14,EB_EnergyTable,3,FALSE),0),Verbrauchererfassung!S14 * IFERROR(VLOOKUP(Verbrauchererfassung!R14,EB_EnergyTable,3,FALSE),0),Verbrauchererfassung!V14 * IFERROR(VLOOKUP(Verbrauchererfassung!U14,EB_EnergyTable,3,FALSE),0),Verbrauchererfassung!Y14 * IFERROR(VLOOKUP(Verbrauchererfassung!X14,EB_EnergyTable,3,FALSE),0),Verbrauchererfassung!AB14 * IFERROR(VLOOKUP(Verbrauchererfassung!AA14,EB_EnergyTable,3,FALSE),0),Verbrauchererfassung!AE14 * IFERROR(VLOOKUP(Verbrauchererfassung!AD14,EB_EnergyTable,3,FALSE),0),Verbrauchererfassung!AH14 * IFERROR(VLOOKUP(Verbrauchererfassung!AG14,EB_EnergyTable,3,FALSE),0)) -> 0 | I18: =IF(ISERROR(Tab_LoadsOverallConsumption[[#This Row],[Kosten '[€']]]/H$6),0,Tab_LoadsOverallConsumption[[#This Row],[Kosten '[€']]]/H$6) -> 0 | J18: =SUM(Verbrauchererfassung!M14*IFERROR(VLOOKUP(Verbrauchererfassung!L14,EFaktoren,5,FALSE),0),IFERROR(Verbrauchererfassung!P14*VLOOKUP(Verbrauchererfassung!O14,EFaktoren,5,FALSE),0),Verbrauchererfassung!S14*IFERROR(VLOOKUP(Verbrauchererfassung!R14,EFaktoren,5,FALSE),0),Verbrauchererfassung!V14*IFERROR(VLOOKUP(Verbrauchererfassung!U14,EFaktoren,5,FALSE),0),Verbrauchererfassung!Y14*IFERROR(VLOOKUP(Verbrauchererfassung!X14,EFaktoren,5,FALSE),0),Verbrauchererfassung!AB14*IFERROR(VLOOKUP(Verbrauchererfassung!AA14,EFaktoren,5,FALSE),0),Verbrauchererfassung!AE14*IFERROR(VLOOKUP(Verbrauchererfassung!AD14,EFaktoren,5,FALSE),0),Verbrauchererfassung!AH14*IFERROR(VLOOKUP(Verbrauchererfassung!AG14,EFaktoren,5,FALSE),0))*0.001 -> 0 | K18: =IF(ISERROR(Tab_LoadsOverallConsumption[[#This Row],[CO2 '[t']]]/J$6),"nv",Tab_LoadsOverallConsumption[[#This Row],[CO2 '[t']]]/J$6) -> nv
B19: =Verbrauchererfassung!B15 -> 8 | C19: =Verbrauchererfassung!C15 -> 0 | E19: =Verbrauchererfassung!D15 -> 0 | F19: =SUM(Verbrauchererfassung!L15:AH15) -> 0 | G19: =IF(ISERROR(Tab_LoadsOverallConsumption[[#This Row],[Verbrauch '[kWh']]]/F$6),0,Tab_LoadsOverallConsumption[[#This Row],[Verbrauch '[kWh']]]/F$6) -> 0 | H19: =SUM(Verbrauchererfassung!M15 * IFERROR(VLOOKUP(Verbrauchererfassung!L15,EB_EnergyTable,3,FALSE),0),IFERROR(Verbrauchererfassung!P15 * VLOOKUP(Verbrauchererfassung!O15,EB_EnergyTable,3,FALSE),0),Verbrauchererfassung!S15 * IFERROR(VLOOKUP(Verbrauchererfassung!R15,EB_EnergyTable,3,FALSE),0),Verbrauchererfassung!V15 * IFERROR(VLOOKUP(Verbrauchererfassung!U15,EB_EnergyTable,3,FALSE),0),Verbrauchererfassung!Y15 * IFERROR(VLOOKUP(Verbrauchererfassung!X15,EB_EnergyTable,3,FALSE),0),Verbrauchererfassung!AB15 * IFERROR(VLOOKUP(Verbrauchererfassung!AA15,EB_EnergyTable,3,FALSE),0),Verbrauchererfassung!AE15 * IFERROR(VLOOKUP(Verbrauchererfassung!AD15,EB_EnergyTable,3,FALSE),0),Verbrauchererfassung!AH15 * IFERROR(VLOOKUP(Verbrauchererfassung!AG15,EB_EnergyTable,3,FALSE),0)) -> 0 | I19: =IF(ISERROR(Tab_LoadsOverallConsumption[[#This Row],[Kosten '[€']]]/H$6),0,Tab_LoadsOverallConsumption[[#This Row],[Kosten '[€']]]/H$6) -> 0 | J19: =SUM(Verbrauchererfassung!M15*IFERROR(VLOOKUP(Verbrauchererfassung!L15,EFaktoren,5,FALSE),0),IFERROR(Verbrauchererfassung!P15*VLOOKUP(Verbrauchererfassung!O15,EFaktoren,5,FALSE),0),Verbrauchererfassung!S15*IFERROR(VLOOKUP(Verbrauchererfassung!R15,EFaktoren,5,FALSE),0),Verbrauchererfassung!V15*IFERROR(VLOOKUP(Verbrauchererfassung!U15,EFaktoren,5,FALSE),0),Verbrauchererfassung!Y15*IFERROR(VLOOKUP(Verbrauchererfassung!X15,EFaktoren,5,FALSE),0),Verbrauchererfassung!AB15*IFERROR(VLOOKUP(Verbrauchererfassung!AA15,EFaktoren,5,FALSE),0),Verbrauchererfassung!AE15*IFERROR(VLOOKUP(Verbrauchererfassung!AD15,EFaktoren,5,FALSE),0),Verbrauchererfassung!AH15*IFERROR(VLOOKUP(Verbrauchererfassung!AG15,EFaktoren,5,FALSE),0))*0.001 -> 0 | K19: =IF(ISERROR(Tab_LoadsOverallConsumption[[#This Row],[CO2 '[t']]]/J$6),"nv",Tab_LoadsOverallConsumption[[#This Row],[CO2 '[t']]]/J$6) -> nv
B20: =Verbrauchererfassung!B16 -> 9 | C20: =Verbrauchererfassung!C16 -> 0 | E20: =Verbrauchererfassung!D16 -> 0 | F20: =SUM(Verbrauchererfassung!L16:AH16) -> 0 | G20: =IF(ISERROR(Tab_LoadsOverallConsumption[[#This Row],[Verbrauch '[kWh']]]/F$6),0,Tab_LoadsOverallConsumption[[#This Row],[Verbrauch '[kWh']]]/F$6) -> 0 | H20: =SUM(Verbrauchererfassung!M16 * IFERROR(VLOOKUP(Verbrauchererfassung!L16,EB_EnergyTable,3,FALSE),0),IFERROR(Verbrauchererfassung!P16 * VLOOKUP(Verbrauchererfassung!O16,EB_EnergyTable,3,FALSE),0),Verbrauchererfassung!S16 * IFERROR(VLOOKUP(Verbrauchererfassung!R16,EB_EnergyTable,3,FALSE),0),Verbrauchererfassung!V16 * IFERROR(VLOOKUP(Verbrauchererfassung!U16,EB_EnergyTable,3,FALSE),0),Verbrauchererfassung!Y16 * IFERROR(VLOOKUP(Verbrauchererfassung!X16,EB_EnergyTable,3,FALSE),0),Verbrauchererfassung!AB16 * IFERROR(VLOOKUP(Verbrauchererfassung!AA16,EB_EnergyTable,3,FALSE),0),Verbrauchererfassung!AE16 * IFERROR(VLOOKUP(Verbrauchererfassung!AD16,EB_EnergyTable,3,FALSE),0),Verbrauchererfassung!AH16 * IFERROR(VLOOKUP(Verbrauchererfassung!AG16,EB_EnergyTable,3,FALSE),0)) -> 0 | I20: =IF(ISERROR(Tab_LoadsOverallConsumption[[#This Row],[Kosten '[€']]]/H$6),0,Tab_LoadsOverallConsumption[[#This Row],[Kosten '[€']]]/H$6) -> 0 | J20: =SUM(Verbrauchererfassung!M16*IFERROR(VLOOKUP(Verbrauchererfassung!L16,EFaktoren,5,FALSE),0),IFERROR(Verbrauchererfassung!P16*VLOOKUP(Verbrauchererfassung!O16,EFaktoren,5,FALSE),0),Verbrauchererfassung!S16*IFERROR(VLOOKUP(Verbrauchererfassung!R16,EFaktoren,5,FALSE),0),Verbrauchererfassung!V16*IFERROR(VLOOKUP(Verbrauchererfassung!U16,EFaktoren,5,FALSE),0),Verbrauchererfassung!Y16*IFERROR(VLOOKUP(Verbrauchererfassung!X16,EFaktoren,5,FALSE),0),Verbrauchererfassung!AB16*IFERROR(VLOOKUP(Verbrauchererfassung!AA16,EFaktoren,5,FALSE),0),Verbrauchererfassung!AE16*IFERROR(VLOOKUP(Verbrauchererfassung!AD16,EFaktoren,5,FALSE),0),Verbrauchererfassung!AH16*IFERROR(VLOOKUP(Verbrauchererfassung!AG16,EFaktoren,5,FALSE),0))*0.001 -> 0 | K20: =IF(ISERROR(Tab_LoadsOverallConsumption[[#This Row],[CO2 '[t']]]/J$6),"nv",Tab_LoadsOverallConsumption[[#This Row],[CO2 '[t']]]/J$6) -> nv
B21: =Verbrauchererfassung!B17 -> 10 | C21: =Verbrauchererfassung!C17 -> 0 | E21: =Verbrauchererfassung!D17 -> 0 | F21: =SUM(Verbrauchererfassung!L17:AH17) -> 0 | G21: =IF(ISERROR(Tab_LoadsOverallConsumption[[#This Row],[Verbrauch '[kWh']]]/F$6),0,Tab_LoadsOverallConsumption[[#This Row],[Verbrauch '[kWh']]]/F$6) -> 0 | H21: =SUM(Verbrauchererfassung!M17 * IFERROR(VLOOKUP(Verbrauchererfassung!L17,EB_EnergyTable,3,FALSE),0),IFERROR(Verbrauchererfassung!P17 * VLOOKUP(Verbrauchererfassung!O17,EB_EnergyTable,3,FALSE),0),Verbrauchererfassung!S17 * IFERROR(VLOOKUP(Verbrauchererfassung!R17,EB_EnergyTable,3,FALSE),0),Verbrauchererfassung!V17 * IFERROR(VLOOKUP(Verbrauchererfassung!U17,EB_EnergyTable,3,FALSE),0),Verbrauchererfassung!Y17 * IFERROR(VLOOKUP(Verbrauchererfassung!X17,EB_EnergyTable,3,FALSE),0),Verbrauchererfassung!AB17 * IFERROR(VLOOKUP(Verbrauchererfassung!AA17,EB_EnergyTable,3,FALSE),0),Verbrauchererfassung!AE17 * IFERROR(VLOOKUP(Verbrauchererfassung!AD17,EB_EnergyTable,3,FALSE),0),Verbrauchererfassung!AH17 * IFERROR(VLOOKUP(Verbrauchererfassung!AG17,EB_EnergyTable,3,FALSE),0)) -> 0 | I21: =IF(ISERROR(Tab_LoadsOverallConsumption[[#This Row],[Kosten '[€']]]/H$6),0,Tab_LoadsOverallConsumption[[#This Row],[Kosten '[€']]]/H$6) -> 0 | J21: =SUM(Verbrauchererfassung!M17*IFERROR(VLOOKUP(Verbrauchererfassung!L17,EFaktoren,5,FALSE),0),IFERROR(Verbrauchererfassung!P17*VLOOKUP(Verbrauchererfassung!O17,EFaktoren,5,FALSE),0),Verbrauchererfassung!S17*IFERROR(VLOOKUP(Verbrauchererfassung!R17,EFaktoren,5,FALSE),0),Verbrauchererfassung!V17*IFERROR(VLOOKUP(Verbrauchererfassung!U17,EFaktoren,5,FALSE),0),Verbrauchererfassung!Y17*IFERROR(VLOOKUP(Verbrauchererfassung!X17,EFaktoren,5,FALSE),0),Verbrauchererfassung!AB17*IFERROR(VLOOKUP(Verbrauchererfassung!AA17,EFaktoren,5,FALSE),0),Verbrauchererfassung!AE17*IFERROR(VLOOKUP(Verbrauchererfassung!AD17,EFaktoren,5,FALSE),0),Verbrauchererfassung!AH17*IFERROR(VLOOKUP(Verbrauchererfassung!AG17,EFaktoren,5,FALSE),0))*0.001 -> 0 | K21: =IF(ISERROR(Tab_LoadsOverallConsumption[[#This Row],[CO2 '[t']]]/J$6),"nv",Tab_LoadsOverallConsumption[[#This Row],[CO2 '[t']]]/J$6) -> nv

Sheet Messmittel
J1: =Einleitung!$C$1 -> Version 3.2 - 11.11.2020
B3: Messmittel
B5: Messsystem/ Messmittel | C5: Energieträger | D5: Messprinzip/ -art | E5: Baujahr | F5: geeicht/ kalibriert | G5: Grad der Genauigkeit/ Kalibrierung
B6: Bitte Messmittelliste zuerst ausfüllen… dieser Text kann gelöscht werden
B7: ….
B8: ….
B9: ….
B10: ….
B11: ….
B12: ….
B16: Zeilen können auch manuell (innerhalb der Tabelle) eingefügt werden. | G16: <2%
B17: Zeilen innerhalb der Tabelle können auch nach Belieben gelöscht oder verschoben werden. | G17: <5%
G18: <10%
G19: <20%

Sheet Energieeinsparprogramm
A1: 8 | I1: =Einleitung!$C$1 -> Version 3.2 - 11.11.2020
B3: Energie-Einsparprogramm | G3: Doppelklick auf Zeile öffnet Aktionsplan | I3: höchste Nummer: | J3: 0 | L3: nur hier eintragen!
B5: allgemeine Informationen | H5: Potentialabschätzung | L5: Umsetzung
B6: Nr. | C6: WS | D6: Gesellschaft | E6: Standort | F6: betroffener Bereich | G6: geplante Effizienzmaßnahme | H6: Einsparpotenzial [€/a] | I6: Einsparpotenzial [kWh/a] | J6: geplanter Invest [€] | K6: geplanter ROI [Jahre] | L6: Priorität | M6: verantwortlich | N6: Frist | O6: Projektstatus

Sheet Faktoren
N1: =Einleitung!$C$1 -> Version 3.2 - 11.11.2020
C3: Emissionsfaktoren
C5: Energie(träger) | D5: Literaturwerte in t CO2/GJ | E5: Emissionsfaktoren in kg CO2/ kWh
E6: Literaturwerte | F6: eigene Werte | G6: Berechnung erfolgt mit
B7: □ | C7: Strom | E7: 0.563 | G7: =IF(NOT(ISBLANK(F7)),F7,E7) -> 0.563
B8: # | C8: Ökostrom | E8: 0.017 | G8: =IF(NOT(ISBLANK(F8)),F8,E8) -> 0.017
B9: # | C9: Fernwärme | E9: 0.21 | G9: 0.21
B10: ~ | C10: Erdgas L | D10: 0.056255 | E10: 0.2025017999 | G10: 0.2025017999
B11: ~ | C11: Erdgas H | D11: 0.0581559 | E11: 0.2093444924 | G11: 0.2093444924
B12: ~ | C12: Flüssiggas | D12: 0.0642 | E12: 0.2311015119 | G12: 0.2311015119
B13: * | C13: Heizöl EL | D13: 0.0741 | E13: 0.2667386609 | G13: 0.2667386609
B14: * | C14: Heizöl S | D14: 0.809 | E14: 2.912167027 | G14: 2.912167027
B15: * | C15: Vollwertkohle | D15: 0.094 | E15: 0.3383729302 | G15: 0.3383729302
B16: * | C16: Braunkohle | D16: 0.101 | E16: 0.3635709143 | G16: 0.3635709143
B17: * | C17: Steinkohlekoks | D17: 0.105 | E17: 0.3779697624 | G17: 0.3779697624
B18: * | C18: Benzin | D18: 0.0693 | E18: 0.2494600432 | G18: 0.2494600432
B19: * | C19: Diesel | D19: 0.0741 | E19: 0.2667386609 | G19: 0.2667386609
C20: Biomasse | D20: 0 | E20: 0 | G20: 0
C21: Holzhackschnitzel | D21: 0 | E21: 0 | G21: 0
C22: Holzpellets | D22: 0 | E22: 0 | G22: 0
C23: Bio-Fernwärme | D23: 0 | E23: 0 | G23: 0
C24: Druckgase | G24: 0
C25: Kälte | G25: 0
G26: =IF(F26>0,F26,E26) -> 0
G27: 0
C29: Quellenangaben:
C30: □ Umweltbundesamt; "Entwicklung der spezifischen Kohlendioxid-Emissionen des deutschen Strommix in den Jahren 1990 bis 2013"; Dessau; Juli 2014
C31: * Monitoring Verordnung der europäischen Kommission, VERORDNUNG (EU) Nr. 600/2012 DER KOMMISSION vom 21. Juni 2012
C32: über die Prüfung von Treibhausgasemissionsberichten und Tonnenkilometerberichten sowie die Akkreditierung von Prüfstellen
C33: gemäß der Richtlinie 2003/87/EG des Europäischen Parlaments und des Rates
C34: ~ GEMIS Datenbank Version 4.9 (Öko-Institut)
C35: # http://www5.umweltbundesamt.at/emas/co2mon/co2mon.htm ; Stand: 06.01.2015

Sheet Rechner
N1: =Einleitung!$C$1 -> Version 3.2 - 11.11.2020
B3: Umrechnungshilfen
B5: Von | C5: nach
B6: GJ | C6: kWh | E6: zur Umrechnung benötigte Angaben | H6: Literaturwerte:
B7: 1 | C7: =B7*277.78 -> 277.78 | H7: Gase | I7: MJ / Nm3 | L7: kWh / Nm3
G8: ~ | H8: Erdgas H | I8: 35.8371 | L8: =I8*2.778*1000000/1000/10000 -> 9.95554638
B9: Von | C9: nach | G9: ~ | H9: Erdgas L | I9: 34.09075 | L9: =I9*2.778*1000000/1000/10000 -> 9.47041035
B10: Nm³ | C10: kWh | E10: GJ / 1.000 Nm³ | G10: ~ | H10: Grubengas | I10: 9.9547197 | L10: =I10*2.778*1000000/1000/10000 -> 2.765421133
B11: 1 | C11: =B11*E11/1000*277.78 -> 10.00008 | E11: 36 | G11: ~ | H11: Bio-Gas | I11: 38.624455 | L11: 10.7298736
H12: Flüssigkeiten | I12: MJ / kg | J12: kWh / kg | K12: kg / l ~ | L12: kWh / l
G13: Δ | H13: Heizöl EL/ Diesel | I13: 43 | J13: =I13*2.778*1000000/1000/10000 -> 11.9454 | K13: 0.84 | L13: =J13*K13 -> 10.034136
E14: GJ/ t | G14: Δ | H14: Heizöl S | I14: 42.3 | J14: =I14*2.778*1000000/1000/10000 -> 11.75094 | K14: 0.865 | L14: =J14*K14 -> 10.1645631
B15: Von | C15: nach | E15: 40.1 | G15: Δ | H15: Benzin | I15: 44.3 | J15: 12.30654 | K15: 0.75 | L15: 9.229905
B16: Liter | C16: kWh | G16: Δ | H16: Flüssiggas | I16: 47.3 | J16: 13.13994 | K16: 0.6911 | L16: 9.081012534
B17: 1 | C17: =B17*E18/1000*E15*277.78 -> 8.3542335 | E17: kg/ l | G17: Δ | H17: Bio-Diesel | I17: 27 | J17: 7.5006 | K17: 0.832 | L17: 6.2404992
E18: 0.75 | H18: Feststoffe | I18: MJ / kg | L18: kWh / kg
G19: Δ | H19: Vollwertkohle | I19: 30.65 | L19: =I19*2.778*1000000/1000/10000 -> 8.51457
C20: €/ kWh | E20: €/ l | G20: * | H20: Steinkohle | I20: 30.65 | L20: =I20*2.778*1000000/1000/10000 -> 8.51457
C21: =E21/(C17/B17) -> 0.1855346753 | E21: 1.55 | G21: * | H21: Braunkohle | I21: 11.9 | L21: 3.30582
G22: Δ | H22: Steinkohlekoks | I22: 29.05 | L22: 8.07009
B23: Von | C23: nach | G23: ~ | H23: Holzhackschnitzel | I23: 14.595625 | L23: 4.054664625
B24: t CO2 / GJ | C24: kg CO2 / kWh | G24: ~ | H24: Holzpellets | I24: 17.756375 | L24: 4.932720975
B25: 1 | C25: =B25/277.78*1000 -> 3.5999712 | G25: Δ | H25: Biomasse | I25: 11.6 | L25: 3.22248
H27: Quellenangaben:
H28: Δ Monitoring Verordnung der europäischen Kommission, VERORDNUNG (EU) Nr. 600/2012 DER KOMMISSION vom 21. Juni 2012
H29: über die Prüfung von Treibhausgasemissionsberichten und Tonnenkilometerberichten sowie die Akkreditierung von Prüfstellen
H30: gemäß der Richtlinie 2003/87/EG des Europäischen Parlaments und des Rates
H31: * Walter; "Tabellenbuch Chemietechnik"; 9. Auflage 2014; ISBN 978-3-8085-7089-0
H32: ~ GEMIS Datenbank Version 4.9 (Öko Institut)

Sheet template (hidden)
B3: Titel
F4: Verbrauch [kWh] | G4: Kosten pro KWh | H4: Kosten [€] | I4: CO2 Faktor | J4: CO2 [t]
E5: Bezugsmengen laut Eingangsbilanz: | F5: =VLOOKUP(B3,EB_EnergyTable,2,FALSE) ->  | G5: =VLOOKUP(B3,EB_EnergyTable,3,FALSE) ->  | H5: =VLOOKUP(B3,EB_EnergyTable,5,FALSE) ->  | I5: =VLOOKUP(B3,EFaktoren,5,FALSE)*0.001 ->  | J5: =VLOOKUP(B3,EB_EnergyTable,7,FALSE) -> 
E6: Differenz zur Verbrauchermessung: | F6: =F5-F8 ->  | H6: =H5-H8 ->  | J6: =IF(ISNUMBER(J5),J5-J8,"nv") -> nv
E8: Summen der Verbrauchermessung: | F8: =SUM(F10:F10) -> 0 | G8: =SUM(Tab_template[Anteil am Gesamt-verbrauch]) -> 0 | H8: =SUM(H10:H10) ->  | I8: =SUM(Tab_template[Kostenanteil]) -> 0 | J8: =SUM(J10:J10) -> 0 | K8: =SUM(Tab_template[CO2-Anteil]) -> 0
B9: Verbraucher | C9: Unterverbraucher | D9: Kennung | E9: Messmittel | F9: Verbrauch | G9: Anteil am Gesamt-verbrauch | H9: Kosten | I9: Kostenanteil | J9: CO2 | K9: CO2-Anteil
G10: =IFERROR(Tab_template[[#This Row],[Verbrauch]]/F$5,0) -> 0 | H10: =Tab_template[[#This Row],[Verbrauch]]*G$5 ->  | I10: =IFERROR(Tab_template[[#This Row],[Kosten]]/H$5,0) -> 0 | J10: =IFERROR(Tab_template[[#This Row],[Verbrauch]]*I$5,"nv") -> nv | K10: =IFERROR(Tab_template[[#This Row],[CO2]]/J$5,"nv") -> nv

Sheet template_activity (hidden)
H2: ="Aktionsplan "&B6 -> Aktionsplan | AR2: 4/4-Spalten | AS2: 3/4-Spalten | AT2: 2/4-Spalten
B4: Maßnahmenentwicklung und -beschreibung
B5: Nr. Aktionsplan | L5: Erstaufnahme am | V5: letzte Änderung am | AF5: letzter Bearbeiter
AT6: =V10 -> 0
B7: Gesellschaft
AR8: =B8 -> 0
B9: Standort | V9: betroffener Bereich/Abteilung
B11: Konkretes Ziel der Effizienzmaßnahme
AP12: t | AQ12: Bitte so beschreiben, dass klar wird, was gemacht wird. | AR12: =B12 -> 0
B13: Zustand vor Maßnahmenumsetzung
AR14: =B14 -> 0
B15: Energetische Ausgangsbasis | L15: Einheit
AP16: t | AQ16: Hier ist die energetische Ausgangsbasis vor der Umsetzung der Effizienzmaßnahme zu erfassen. | AT16: =L16 -> 0
B17: Wie wird die energetische Ausgangsbasis bestimmt?
AP18: t | AQ18: Hier sind Angaben zur Formel, zum Messaufbau, zur Berechnung etc. möglich. | AR18: =B18 -> 0
B19: Ermittlungsart der energetischen Ausgangsbasis
AP20: t | AQ20: Bitte einen Wert aus der Liste nutzen oder passenden Freitext eingeben.
B21: Unter welchen Bedingungen findet die Messung statt?
AP22: t | AQ22: Hier sind Angaben zu relevanten Einflussgrößen/Rahmenbedingungen von Interesse, bspw: Einstellungen Messgerät, verarbeitete Mengen, Umgebungsbedingungen, Temperatureinflüsse etc. | AR22: =B22 -> 0
B23: geplante Investitionskosten | L23: Einsparpotenzial (€/a) | V23: Einsparpotenzial (kWh/a) | AF23: ROI (statisch)
AF24: =IFERROR(B24/L24,0) -> 0 | AP24: t | AQ24: ROI <= 3, ROI > 3 und <=5, ROI > 5 | AT24: =L24 -> 0
B25: Erklärung zu Investitionskosten
AR26: =B26 -> 0
B27: Herleitung des Einsparpotenzials
AR28: =B28 -> 0 | AT28: =L28 -> 0
B30: Maßnahmenumsetzung
B31: Schritte zur Maßnahmenumsetzung
B32: Schritt 1 | AS32: =L32 -> 0
B33: Schritt 2 | AS33: =L33 -> 0
B34: Schritt 3 | AS34: =L34 -> 0
B35: Umsetzung bis | L35: Verantwortlich für Umsetzung
AT36: =L36 -> 0
B37: Neue energ. Ausgangsbasis | L37: Einheit
AT38: =L38 -> 0
B39: Wie wird die neue energetische Ausgangsbasis bestimmt?
AR40: =B40 -> 0
B41: Unter welchen Bedingungen findet die Messung statt?
AP42: t | AQ42: Hier sind Angaben zu relevanten Einflussgrößen/Rahmenbedingungen von Interesse, bspw: Einstellungen Messgerät, verarbeitete Mengen, Umgebungsbedingungen, Temperatureinflüsse etc. | AR42: =B42 -> 0
B43: tatsächliche Investitionskosten | L43: Realisierte Einsparung (€/a) | V43: Realisierte Einsparung (kWh/a) | AF43: realisierter ROI
AF44: =IFERROR(B44/L44,0) -> 0
B45: Abgelegte Dokumente zur Maßnahme
AR46: =B46 -> 0
B47: Sonstige Anmerkungen
AR48: =B48 -> 0
B49: Projektstatus | V49: Zielerreichung
V50: =IFERROR(V44/V24,0) -> 0

Sheet FormulaTemplate (hidden)
C1: ="A"&tabActivities[Nr.] -> A | D1: =IFERROR(LEFT(INDIRECT($C1&"!B8"),30),"") ->  | E1: =IFERROR(LEFT(INDIRECT($C1&"!B10"),30),"") ->  | F1: =IFERROR(LEFT(INDIRECT($C1&"!V10"),30),"") ->  | G1: =IFERROR(LEFT(INDIRECT($C1&"!B12"),30),"") ->  | H1: =IFERROR(INDIRECT(C1&"!L24"),"") ->  | I1: =IFERROR(INDIRECT(C1&"!V24"),"") ->  | J1: =IFERROR(INDIRECT(C1&"!B24"),"") ->  | K1: =IFERROR(INDIRECT(C1&"!AF24"),"") ->  | M1: =IFERROR(INDIRECT(C1&"!L36"),"") ->  | N1: =IFERROR(INDIRECT(C1&"!B36"),"") ->  | O1: =IFERROR(INDIRECT(C1&"!B50"),"") -> 
